fUST/lending_fUST_20241217
["ID","MTS","AMOUNT","RATE_DAILY","PERIOD"]
[345710736,1734429039119,-500.0,0.00026027,6]
[345710738,1734429039129,-644.74,0.00026027,6]
[345710740,1734429039139,-4622.05,0.00026027,6]
[345710742,1734429039148,-5984.88,0.00026027,5]
[345710744,1734429039158,-500.0,0.00026027,6]
[345710746,1734429039168,-706.11,0.00026027,6]
[345710749,1734429039178,-17432.89,0.00026027,6]
[345710750,1734429039188,-514.28,0.00026027,6]
[345710752,1734429039198,-954.4,0.00026027,6]
[345710755,1734429039207,-1132.26,0.00026027,6]
[345710756,1734429039217,-963.48,0.00026027,2]
[345710758,1734429039227,-500.0,0.00026027,6]
[345710760,1734429039236,-500.0,0.00026027,6]
[345710762,1734429039246,-500.0,0.00026027,6]
[345710765,1734429039256,-500.0,0.00026027,6]
[345710767,1734429039265,-2717.02,0.00026027,6]
[345710770,1734429039275,-1401.8,0.00026027,6]
[345710771,1734429039284,-1064.07,0.00026027,6]
[345710773,1734429039294,-652.29,0.00026027,6]
[345710776,1734429039303,-1264.54,0.00026027,6]
[345710779,1734429039313,-500.46972182,0.00026027,6]
[345710780,1734429039323,-918.33,0.00026027,6]
[345710781,1734429039332,-500.0,0.00026027,6]
[345710782,1734429039342,-583.04,0.00026027,6]
[345710783,1734429039352,-977.44,0.00026027,6]
[345710784,1734429039362,-500.0,0.00026027,6]
[345710785,1734429039372,-500.0,0.00026027,6]
[345710786,1734429039382,-618.9,0.00026027,6]
[345710787,1734429039392,-2444.3,0.00026027,6]
[345710788,1734429039402,-500.0,0.00026027,6]
[345710789,1734429039411,-718.77,0.00026027,6]
[345710790,1734429039421,-500.0,0.00026027,6]
[345710791,1734429039431,-832.07,0.00026027,6]
[345710792,1734429039440,-1048.7,0.00026027,6]
[345710793,1734429039450,-500.0,0.00026027,6]
[345710794,1734429039459,-500.0,0.00026027,6]
[345710795,1734429039468,-500.0,0.00026027,6]
[345710796,1734429039477,-500.0,0.00026027,6]
[345710797,1734429039487,-500.0,0.00026027,6]
[345710799,1734429039496,-500.0,0.00026027,6]
[345710801,1734429039506,-1032.7,0.00026027,6]
[345710802,1734429039515,-221.05758571,0.00026027,6]
[345710803,1734429039524,-225.4679862,0.00026234,4]
[345710804,1734429039534,-500.0,0.00026301,6]
[345710805,1734429039543,-500.0,0.00026301,6]
[345710806,1734429039552,-500.0,0.00026301,6]
[345710807,1734429039561,-500.0,0.00026301,6]
[345710808,1734429039571,-767.51,0.00026301,6]
[345710809,1734429039580,-929.35,0.00026301,6]
[345710810,1734429039590,-500.0,0.00026301,6]
[345710811,1734429039600,-655.21,0.00026301,6]
[345710812,1734429039610,-173.02450783,0.00026301,6]
[345710813,1734429039619,-500.0,0.00026301,6]
[345710814,1734429039628,-500.0,0.00026301,6]
[345710815,1734429039637,-500.0,0.00026301,6]
[345710816,1734429039646,-500.0,0.00026301,6]
[345710817,1734429039656,-500.0,0.00026301,6]
[345710818,1734429039665,-500.0,0.00026301,6]
[345710819,1734429039674,-500.0,0.00026301,6]
[345710820,1734429039683,-529.67364611,0.00026301,6]
[345710821,1734429039692,-500.0,0.00026301,6]
[345710822,1734429039701,-500.0,0.00026301,6]
[345710823,1734429039711,-500.0,0.00026301,6]
[345710824,1734429039720,-1095.11,0.00026301,6]
[345710825,1734429039729,-500.0,0.00026301,6]
[345710826,1734429039738,-168.0,0.00026301,6]
[345710827,1734429039747,-691.92,0.00026301,6]
[345710828,1734429039756,-937.09,0.00026301,6]
[345710829,1734429039765,-505.85,0.00026301,6]
[345710830,1734429039774,-970.2,0.00026301,2]
[345710831,1734429039783,-765.78,0.00026301,6]
[345710832,1734429039793,-500.0,0.00026301,6]
[345710833,1734429039802,-500.0,0.00026301,6]
[345710834,1734429039811,-500.0,0.00026301,6]
[345710835,1734429039820,-590.78,0.00026301,6]
[345710836,1734429039830,-926.68,0.00026301,6]
[345710837,1734429039839,-789.71,0.00026301,6]
[345710838,1734429039849,-879.98,0.00026301,6]
[345710839,1734429039858,-500.0,0.00026301,6]
[345710840,1734429039868,-500.0,0.00026301,6]
[345710841,1734429039877,-760.1,0.00026301,6]
[345710842,1734429039886,-951.33,0.00026301,6]
[345710843,1734429039895,-500.0,0.00026301,2]
[345710844,1734429039905,-629.82,0.00026301,6]
[345710845,1734429039914,-500.0,0.00026301,6]
[345710846,1734429039923,-897.26,0.00026301,6]
[345710847,1734429039933,-715.88,0.00026301,6]
[345710848,1734429039942,-500.0,0.00026301,6]
[345710849,1734429039951,-500.0,0.00026301,6]
[345710850,1734429039960,-759.77,0.00026301,6]
[345710851,1734429039970,-500.0,0.00026301,6]
[345710852,1734429039984,-500.0,0.00026301,6]
[345710853,1734429039993,-1033.74,0.00026301,6]
[345710854,1734429040003,-3500.28,0.00026301,6]
[345710855,1734429040012,-7703.67,0.00026301,6]
[345710856,1734429040023,-565.32,0.00026301,6]
[345710858,1734429040032,-793.02,0.00026301,6]
[345710860,1734429040042,-4193.14,0.00026301,6]
[345710862,1734429040053,-1118.67,0.00026301,6]
[345710864,1734429040063,-575.54,0.00026301,6]
[345710865,1734429040072,-500.0,0.00026301,6]
[345710866,1734429040082,-500.0,0.00026301,6]
[345710867,1734429040091,-644.74,0.00026301,6]
[345710868,1734429040103,-4622.05,0.00026301,6]
[345710869,1734429040112,-5984.88,0.00026301,5]
[345710870,1734429040122,-500.0,0.00026301,6]
[345710871,1734429040131,-706.11,0.00026301,6]
[345710872,1734429040141,-17432.89,0.00026301,6]
[345710873,1734429040150,-514.28,0.00026301,6]
[345710874,1734429040160,-954.4,0.00026301,6]
[345710876,1734429040170,-1132.26,0.00026301,6]
[345710878,1734429040179,-963.48,0.00026301,2]
[345710880,1734429040189,-500.0,0.00026301,6]
[345710882,1734429040198,-500.0,0.00026301,6]
[345710884,1734429040208,-500.0,0.00026301,6]
[345710886,1734429040217,-500.0,0.00026301,6]
[345710888,1734429040226,-2717.02,0.00026301,6]
[345710890,1734429040236,-1401.8,0.00026301,6]
[345710892,1734429040245,-1064.07,0.00026301,6]
[345710894,1734429040254,-652.29,0.00026301,6]
[345710896,1734429040263,-1264.54,0.00026301,6]
[345710898,1734429040272,-918.33,0.00026301,6]
[345710900,1734429040282,-500.0,0.00026301,6]
[345710902,1734429040292,-583.04,0.00026301,6]
[345710904,1734429040302,-977.44,0.00026301,6]
[345710906,1734429040312,-622.33704665,0.00026301,6]
[345710908,1734429040321,-500.0,0.00026301,6]
[345710910,1734429040330,-618.9,0.00026301,6]
[345710912,1734429040340,-2444.3,0.00026301,6]
[345710914,1734429040351,-500.0,0.00026301,6]
[345710916,1734429040361,-718.77,0.00026301,6]
[345710918,1734429040370,-500.0,0.00026301,6]
[345710920,1734429040380,-832.07,0.00026301,6]
[345710922,1734429040390,-1048.7,0.00026301,6]
[345710924,1734429040399,-500.0,0.00026301,6]
[345710926,1734429040409,-500.0,0.00026301,6]
[345710929,1734429040419,-500.0,0.00026301,6]
[345710931,1734429040428,-500.0,0.00026301,6]
[345710933,1734429040437,-500.0,0.00026301,6]
[345710935,1734429040447,-500.0,0.00026301,6]
[345710937,1734429040456,-1032.7,0.00026301,6]
[345710939,1734429040466,-381.20663091,0.00026499,2]
[345710941,1734429040476,-7727.65882609,0.000265,2]
[345710943,1734429040485,-572.21304824,0.000265,2]
[345710945,1734429040495,-166473.80156201,0.000265,5]
[345711007,1734429041079,-500.0,0.00025479,6]
[345711009,1734429041089,-500.0,0.00025753,6]
[345711011,1734429041108,-500.0,0.00026027,6]
[345711013,1734429041118,-222.3396068,0.00026301,6]
[345711014,1734429041129,-277.6603932,0.00026301,6]
[345711015,1734429041139,-7962.16459606,0.000265,5]
[345711016,1734429041258,-634.56425145,0.000265,5]
[345711017,1734429041270,-476.0323983,0.000265,5]
[345711018,1734429041281,-495.1144016,0.000265,5]
[345711019,1734429041293,-823.2107342,0.000265,5]
[345711022,1734429041304,-471.8561426,0.000265,5]
[345711024,1734429041316,-351.432246,0.000265,5]
[345711026,1734429041327,-1205.7999992,0.000265,5]
[345711192,1734429042949,-500.0,0.00024657,6]
[345711194,1734429042960,-500.0,0.00024931,6]
[345711197,1734429042970,-5849.21735082,0.00025,2]
[345711199,1734429042991,-213.42495046,0.00025,2]
[345711200,1734429043000,-500.0,0.00025205,6]
[345711201,1734429043010,-500.0,0.00025479,6]
[345711202,1734429043019,-500.0,0.00025753,6]
[345711203,1734429043030,-500.0,0.00026027,6]
[345711204,1734429043040,-7121.17310134,0.000265,5]
[345711469,1734429045955,-500.0,0.00024657,6]
[345711471,1734429045965,-37.05,0.00024931,6]
[345714396,1734429698822,2000.0,0.00027959,120]
[345714439,1734430232087,-161.0,0.00022,2]
[345714440,1734430232096,-300.0,0.00023709,2]
[345714441,1734430232106,-300.0,0.00023709,2]
[345714442,1734430232116,-9940.790235,0.0002371,2]
[345714443,1734430232125,-485.55393451,0.00024,10]
[345714444,1734430232217,-1352.145,0.00024,10]
[345714452,1734430232304,-1710.82693061,0.00024,10]
[345714455,1734430232316,-6451.47413488,0.00024,10]
[345714458,1734430232327,-500.0,0.00024657,6]
[345714462,1734430232336,-500.0,0.00024657,6]
[345714467,1734430232345,-500.0,0.00024657,6]
[345714471,1734430232357,-658.29,0.00024657,6]
[345714474,1734430232370,-500.0,0.00024657,6]
[345714477,1734430232380,-500.0,0.00024657,6]
[345714481,1734430232389,-500.0,0.00024657,6]
[345714484,1734430232399,-500.0,0.00024657,6]
[345714487,1734430232408,-500.0,0.00024657,6]
[345714490,1734430232417,-500.0,0.00024657,6]
[345714493,1734430232427,-500.0,0.00024657,6]
[345714496,1734430232436,-500.0,0.00024657,6]
[345714499,1734430232446,-775.7,0.00024657,6]
[345714502,1734430232455,-500.0,0.00024657,6]
[345714505,1734430232464,-500.0,0.00024657,6]
[345714508,1734430232474,-500.0,0.00024657,6]
[345714510,1734430232483,-663.77,0.00024657,6]
[345714512,1734430232493,-500.0,0.00024657,6]
[345714514,1734430232502,-687.23,0.00024657,2]
[345714517,1734430232513,-500.0,0.00024657,6]
[345714519,1734430232522,-168.0,0.00024657,6]
[345714521,1734430232533,-500.0,0.00024657,6]
[345714523,1734430232542,-656.4,0.00024657,6]
[345714525,1734430232552,-500.0,0.00024657,6]
[345714527,1734430232561,-542.42,0.00024657,6]
[345714529,1734430232571,-500.0,0.00024657,6]
[345714531,1734430232580,-538.4,0.00024657,6]
[345714532,1734430232590,-500.0,0.00024657,6]
[345714534,1734430232599,-623.32,0.00024657,6]
[345714535,1734430232608,-500.0,0.00024657,2]
[345714536,1734430232620,-333.11393649,0.00024657,6]
[345714537,1734430232630,-500.0,0.00024657,6]
[345714538,1734430232639,-559.38,0.00024657,6]
[345714539,1734430232648,-500.0,0.00024657,6]
[345714540,1734430232657,-673.86,0.00024657,6]
[345714541,1734430232667,-507.08,0.00024657,6]
[345714542,1734430232677,-3843.25383953,0.00024657,5]
[345714625,1734430238361,-396.03616047,0.00024657,5]
[345714626,1734430238373,-500.0,0.00024657,6]
[345714627,1734430238383,-500.0,0.00024657,6]
[345714628,1734430238392,-635.56,0.00024657,6]
[345714630,1734430238402,-731.49,0.00024657,6]
[345714631,1734430238411,-538.17,0.00024657,6]
[345714632,1734430238420,-389.90318401,0.00024657,6]
[345714633,1734430238429,-500.0,0.00024657,6]
[345714634,1734430238439,-500.0,0.00024657,6]
[345714635,1734430238448,-500.0,0.00024657,6]
[345714636,1734430238457,-682.46,0.00024657,2]
[345714637,1734430238467,-500.0,0.00024657,6]
[345714638,1734430238476,-2479.37,0.00024657,6]
[345714639,1734430238485,-500.0,0.00024657,6]
[345714640,1734430238496,-500.0,0.00024657,6]
[345714641,1734430238505,-1924.55,0.00024657,6]
[345714642,1734430238514,-500.0,0.00024657,6]
[345714643,1734430238524,-1536.29215713,0.00024657,6]
[345714684,1734430243159,-158.03605058,0.000239,2]
[345714685,1734430243169,-1433.84784287,0.00024657,6]
[345714686,1734430243178,-500.0,0.00024657,6]
[345714687,1734430243188,-676.03,0.00024657,6]
[345714688,1734430243197,-500.0,0.00024657,6]
[345714689,1734430243207,-500.0,0.00024657,6]
[345714690,1734430243216,-500.0,0.00024657,6]
[345714691,1734430243226,-732.24,0.00024657,6]
[345714692,1734430243235,-500.0,0.00024657,6]
[345714693,1734430243245,-500.0,0.00024657,6]
[345714694,1734430243254,-3273.95,0.00024657,6]
[345714695,1734430243264,-500.0,0.00024657,6]
[345714696,1734430243274,-561.72,0.00024657,6]
[345714697,1734430243283,-500.0,0.00024657,6]
[345714698,1734430243295,-500.0,0.00024657,6]
[345714699,1734430243304,-500.0,0.00024657,6]
[345714700,1734430243313,-500.0,0.00024657,6]
[345714701,1734430243323,-500.16,0.00024657,6]
[345714702,1734430243334,-802.02,0.00024657,6]
[345714703,1734430243343,-500.0,0.00024657,6]
[345714704,1734430243353,-500.0,0.00024657,6]
[345714705,1734430243363,-500.0,0.00024657,6]
[345714706,1734430243375,-500.0,0.00024657,6]
[345714707,1734430243385,-992.94,0.00024657,6]
[345714708,1734430243395,-500.0,0.00024657,6]
[345714709,1734430243405,-500.0,0.00024657,6]
[345714710,1734430243414,-589.38,0.00024657,6]
[345714711,1734430243424,-1731.38,0.00024657,6]
[345714712,1734430243433,-12637.65,0.00024657,6]
[345714713,1734430243443,-5026.46575003,0.00024657,6]
[345714714,1734430243455,-252.87346695,0.00024657,6]
[345714767,1734430246207,-158.03605058,0.00024557,2]
[345714769,1734430246217,-177.43078302,0.00024657,6]
[345714770,1734430246227,-509.13,0.00024657,6]
[345714772,1734430246236,-228.0521664,0.00024657,6]
[345716061,1734430430705,165.342998,0.00013973,2]
[345716072,1734430616293,6775.0,0.000202,6]
[345716154,1734431317608,150.50682104,0.0002,7]
[345716162,1734431356604,199.57,0.0002,2]
[345716219,1734431432401,-346.23793875,0.00022849,2]
[345716221,1734431432412,-778.0778277,0.0002308,2]
[345716223,1734431432421,-404.26823959,0.00023526,2]
[345716255,1734431432742,-29.76562851,0.00023526,2]
[345716256,1734431432752,-9644.57755007,0.0002394,2]
[345716257,1734431432763,-3000.0,0.00024,10]
[345716259,1734431432773,-300.0,0.00024037,2]
[345716261,1734431432783,-300.0,0.00024037,2]
[345716264,1734431432793,-262.99486261,0.00024037,10]
[345716266,1734431432803,-9644.57755007,0.0002413,2]
[345716268,1734431432812,-173.88322272,0.00024457,2]
[345716270,1734431432822,-1214.52299999,0.00024478,2]
[345716272,1734431432831,-208.35558416,0.00024557,2]
[345716275,1734431432840,-9644.57755009,0.00024572,2]
[345716278,1734431432850,-7842.16836478,0.00024657,2]
[345716281,1734431432859,-286.10652412,0.00024657,2]
[345716283,1734431432869,-500.0,0.00024657,6]
[345716285,1734431432879,-500.0,0.00024657,6]
[345716287,1734431432889,-500.0,0.00024657,6]
[345716289,1734431432899,-500.0,0.00024657,6]
[345716291,1734431432908,-500.0,0.00024657,6]
[345716293,1734431432917,-500.0,0.00024657,6]
[345716295,1734431432927,-500.0,0.00024657,6]
[345716296,1734431432936,-500.0,0.00024657,6]
[345716299,1734431432946,-630.86,0.00024657,6]
[345716300,1734431432955,-500.0,0.00024657,6]
[345716303,1734431432965,-500.0,0.00024657,6]
[345716305,1734431432975,-372.0500819,0.00024657,6]
[345716306,1734431432984,-502.3793555,0.00024657,6]
[345716309,1734431432994,-500.0,0.00024657,6]
[345716310,1734431433003,-500.0,0.00024657,6]
[345716312,1734431433013,-500.0,0.00024657,6]
[345716315,1734431433022,-500.0,0.00024657,6]
[345716316,1734431433032,-500.0,0.00024657,6]
[345716318,1734431433042,-500.0,0.00024657,6]
[345716320,1734431433051,-500.0,0.00024657,6]
[345716323,1734431433061,-500.0,0.00024657,6]
[345716324,1734431433071,-636.12,0.00024657,6]
[345716326,1734431433082,-743.38,0.00024657,6]
[345716328,1734431433092,-658.59,0.00024657,2]
[345716330,1734431433102,-500.0,0.00024657,6]
[345716332,1734431433112,-500.0,0.00024657,6]
[345716334,1734431433121,-500.0,0.00024657,6]
[345716336,1734431433132,-168.0,0.00024657,6]
[345716338,1734431433142,-500.0,0.00024657,6]
[345716340,1734431433151,-500.0,0.00024657,6]
[345716342,1734431433162,-500.0,0.00024657,6]
[345716343,1734431433171,-629.05,0.00024657,6]
[345716344,1734431433181,-500.0,0.00024657,6]
[345716346,1734431433191,-500.0,0.00024657,6]
[345716347,1734431433201,-500.0,0.00024657,6]
[345716348,1734431433210,-500.0,0.00024657,6]
[345716349,1734431433220,-515.97,0.00024657,6]
[345716350,1734431433229,-519.82,0.00024657,6]
[345716351,1734431433239,-500.0,0.00024657,6]
[345716352,1734431433248,-500.0,0.00024657,6]
[345716353,1734431433258,-199.98445748,0.00024657,6]
[345716354,1734431433267,-500.0,0.00024657,2]
[345716355,1734431433277,-3000.0,0.00024657,30]
[345716356,1734431433287,-597.35,0.00024657,6]
[345716357,1734431433297,-500.0,0.00024657,6]
[345716358,1734431433307,-500.0,0.00024657,6]
[345716359,1734431433317,-500.0,0.00024657,6]
[345716360,1734431433327,-536.01,0.00024657,6]
[345716361,1734431433336,-500.0,0.00024657,6]
[345716362,1734431433346,-500.0,0.00024657,6]
[345716363,1734431433356,-500.0,0.00024657,6]
[345716364,1734431433365,-761.15,0.00024657,6]
[345716365,1734431433375,-500.0,0.00024657,6]
[345716366,1734431433385,-511.61047484,0.00024657,6]
[345716367,1734431433408,-500.0,0.00024657,6]
[345716368,1734431433417,-500.0,0.00024657,6]
[345716369,1734431433427,-500.0,0.00024657,6]
[345716370,1734431433438,-500.0,0.00024657,6]
[345716371,1734431433450,-514.24440258,0.00024657,6]
[345716372,1734431433460,-536.08,0.00024657,6]
[345716373,1734431433470,-500.0,0.00024657,6]
[345716374,1734431433479,-1028.09,0.00024657,6]
[345716375,1734431433489,-500.0,0.00024657,6]
[345716376,1734431433499,-500.0,0.00024657,6]
[345716377,1734431433511,-500.0,0.00024657,6]
[345716378,1734431433521,-500.0,0.00024657,6]
[345716379,1734431433531,-500.0,0.00024657,6]
[345716380,1734431433540,-500.0,0.00024657,6]
[345716381,1734431433551,-500.0,0.00024657,6]
[345716382,1734431433560,-1001.09,0.00024657,6]
[345716383,1734431433570,-500.0,0.00024657,6]
[345716384,1734431433580,-500.0,0.00024657,6]
[345716385,1734431433589,-500.0,0.00024657,6]
[345716386,1734431433599,-511.47356466,0.00024657,6]
[345716387,1734431433608,-756.46,0.00024657,6]
[345716388,1734431433618,-500.0,0.00024657,6]
[345716389,1734431433627,-500.0,0.00024657,6]
[345716390,1734431433637,-500.0,0.00024657,6]
[345716391,1734431433647,-500.0,0.00024657,6]
[345716392,1734431433657,-507.24110165,0.00024657,6]
[345716393,1734431433667,-500.0,0.00024657,6]
[345716394,1734431433677,-815.28,0.00024657,6]
[345716395,1734431433688,-500.0,0.00024657,6]
[345716396,1734431433700,-750.24,0.00024657,6]
[345716397,1734431433710,-766.61,0.00024657,6]
[345716398,1734431433720,-5543.0,0.00024657,6]
[345716399,1734431433731,-507.48052237,0.00024657,6]
[345716400,1734431433741,-767.34,0.00024657,6]
[345716401,1734431433750,-500.0,0.00024657,6]
[345716402,1734431433760,-500.0,0.00024657,6]
[345716403,1734431433770,-606.78,0.00024657,6]
[345716404,1734431433780,-865.97,0.00024657,6]
[345716405,1734431433790,-500.0,0.00024657,2]
[345716406,1734431433800,-500.0,0.00024657,6]
[345716407,1734431433809,-500.0,0.00024657,6]
[345716408,1734431433819,-508.05407691,0.00024657,6]
[345716409,1734431433830,-500.0,0.00024657,6]
[345716410,1734431433839,-500.0,0.00024657,6]
[345716411,1734431433848,-500.0,0.00024657,6]
[345716412,1734431433858,-500.0,0.00024657,6]
[345716413,1734431433868,-515.54,0.00024657,6]
[345716414,1734431433877,-500.0,0.00024657,2]
[345716415,1734431433887,-482.8133335,0.00024657,6]
[345716416,1734431433897,-500.0,0.00024657,6]
[345716417,1734431433907,-754.12,0.00024657,6]
[345716418,1734431433917,-4136.76,0.00024657,5]
[345716419,1734431433927,-500.0,0.00024657,6]
[345716420,1734431434108,-500.0,0.00024657,6]
[345716421,1734431434118,-500.0,0.00024657,6]
[345716422,1734431434128,-2524.95,0.00024657,6]
[345716423,1734431434138,-500.0,0.00024657,6]
[345716424,1734431434148,-500.0,0.00024657,6]
[345716425,1734431434158,-777.45,0.00024657,6]
[345716426,1734431434169,-500.0,0.00024657,6]
[345716427,1734431434178,-3152.57,0.00024657,6]
[345716428,1734431434188,-500.0,0.00024657,6]
[345716429,1734431434198,-500.0,0.00024657,6]
[345716430,1734431434207,-610.85,0.00024657,6]
[345716431,1734431434218,-589.97,0.00024657,6]
[345716432,1734431434228,-271.09212175,0.00024657,6]
[345716433,1734431434238,-500.0,0.00024657,6]
[345716434,1734431434248,-107.93001379,0.00024657,6]
[345716450,1734431438675,-392.06998621,0.00024657,6]
[345716451,1734431438690,-500.0,0.00024657,6]
[345716452,1734431438700,-3653.15,0.00024657,6]
[345716454,1734431438710,-500.0,0.00024657,6]
[345716456,1734431438720,-534.42,0.00024657,6]
[345716458,1734431438731,-654.03,0.00024657,2]
[345716460,1734431438740,-548.2,0.00024657,6]
[345716463,1734431438749,-2024.81,0.00024657,6]
[345716465,1734431438760,-564.83,0.00024657,6]
[345716467,1734431438770,-500.0,0.00024657,6]
[345716468,1734431438779,-500.0,0.00024657,6]
[345716469,1734431438789,-500.0,0.00024657,6]
[345716470,1734431438799,-1866.66,0.00024657,6]
[345716471,1734431438808,-500.0,0.00024657,6]
[345716472,1734431438818,-554.4,0.00024657,6]
[345716473,1734431438826,-500.0,0.00024657,6]
[345716474,1734431438835,-7516.53555803,0.00024657,6]
[345716475,1734431438847,-6000.05444197,0.00024657,6]
[345716476,1734431438858,-500.0,0.00024657,6]
[345716477,1734431438867,-500.0,0.00024657,6]
[345716478,1734431438878,-817.91,0.00024657,6]
[345716479,1734431438887,-923.17,0.00024657,6]
[345716480,1734431438897,-500.0,0.00024657,6]
[345716481,1734431438906,-500.0,0.00024657,6]
[345716482,1734431438915,-781.31,0.00024657,6]
[345716483,1734431438925,-500.0,0.00024657,6]
[345716484,1734431438935,-111.03366753,0.00024657,6]
[345716485,1734431438947,-388.96633247,0.00024657,6]
[345716486,1734431438956,-208.35558416,0.00024694,2]
[345716487,1734431438966,-208.35558416,0.00024831,2]
[345716488,1734431438975,-500.0,0.00024931,6]
[345716489,1734431438984,-500.0,0.00024931,6]
[345716490,1734431438994,-500.0,0.00024931,6]
[345716491,1734431439004,-500.0,0.00024931,6]
[345716492,1734431439014,-500.0,0.00024931,6]
[345716493,1734431439024,-630.86,0.00024931,6]
[345716494,1734431439034,-500.0,0.00024931,6]
[345716495,1734431439044,-113.48044969,0.00024931,6]
[345716537,1734431440439,165.99038,0.00013973,2]
[345716616,1734431443424,-611.92,0.00024657,6]
[345716618,1734431443433,-500.0,0.00024657,6]
[345716620,1734431443443,-386.51955031,0.00024931,6]
[345716622,1734431443471,-218.17378781,0.00024931,6]
[345716624,1734431443481,-500.0,0.00024931,6]
[345716626,1734431443490,-500.0,0.00024931,6]
[345716627,1734431443502,-500.0,0.00024931,6]
[345716628,1734431443512,-500.0,0.00024931,6]
[345716629,1734431443523,-540.04444364,0.00024931,6]
[345716631,1734431443533,-500.0,0.00024931,6]
[345716633,1734431443543,-636.12,0.00024931,6]
[345716635,1734431443553,-743.38,0.00024931,6]
[345716636,1734431443563,-658.59,0.00024931,2]
[345716637,1734431443573,-500.0,0.00024931,6]
[345716638,1734431443583,-500.0,0.00024931,6]
[345716639,1734431443593,-500.0,0.00024931,6]
[345716640,1734431443603,-168.0,0.00024931,6]
[345716641,1734431443614,-500.0,0.00024931,6]
[345716642,1734431443623,-629.05,0.00024931,6]
[345716643,1734431443634,-8.99348995,0.00024931,6]
[345716644,1734431443749,-491.00651005,0.00024931,6]
[345716645,1734431443759,-500.0,0.00024931,6]
[345716646,1734431443769,-500.0,0.00024931,6]
[345716647,1734431443781,-515.97,0.00024931,6]
[345716648,1734431443791,-519.82,0.00024931,6]
[345716649,1734431443800,-500.0,0.00024931,6]
[345716650,1734431443809,-500.0,0.00024931,2]
[345716651,1734431443819,-597.35,0.00024931,6]
[345716652,1734431443829,-500.0,0.00024931,6]
[345716653,1734431443839,-536.01,0.00024931,6]
[345716654,1734431443849,-500.0,0.00024931,6]
[345716655,1734431443858,-500.0,0.00024931,6]
[345716656,1734431443869,-761.15,0.00024931,6]
[345716657,1734431443880,-536.08,0.00024931,6]
[345716658,1734431443890,-1028.09,0.00024931,6]
[345716659,1734431443899,-500.0,0.00024931,6]
[345716660,1734431443909,-1001.09,0.00024931,6]
[345716661,1734431443918,-204.62,0.00024931,6]
[345716662,1734431443927,-500.0,0.00024931,6]
[345716663,1734431443937,-756.46,0.00024931,6]
[345716664,1734431443947,-500.0,0.00024931,6]
[345716665,1734431443974,-500.0,0.00024931,6]
[345716666,1734431443984,-500.0,0.00024931,6]
[345716667,1734431443994,-750.24,0.00024931,6]
[345716668,1734431444004,-766.61,0.00024931,6]
[345716669,1734431444013,-5543.0,0.00024931,6]
[345716670,1734431444023,-767.34,0.00024931,6]
[345716672,1734431444032,-500.0,0.00024931,6]
[345716674,1734431444042,-606.78,0.00024931,6]
[345716675,1734431444051,-865.97,0.00024931,6]
[345716676,1734431444060,-500.0,0.00024931,6]